bitfinex-derivatives/quotes_BTCF0:USTF0_20250608
["timestamp","ask_amount","ask_price","bid_price","bid_amount"]
[1749390155851,0.59943432,105880.0,105870.0,1.37290072]
[1749390156652,0.58961044,105880.0,105870.0,1.37290072]
[1749390156850,0.59943432,105880.0,105870.0,1.37290072]
[1749390160558,0.59943432,105880.0,105870.0,1.1671734]
[1749390161658,0.23863432,105880.0,105870.0,1.1671734]
[1749390161858,0.59943432,105880.0,105870.0,1.37253729]
[1749390164449,0.00473475,105880.0,105870.0,1.73333729]
[1749390164650,0.01455863,105880.0,105870.0,1.6647734]
[1749390164847,0.01435863,105880.0,105870.0,1.6647734]
[1749390165048,0.01455863,105880.0,105870.0,1.6647734]
[1749390165759,0.01435863,105880.0,105870.0,1.6647734]
[1749390165959,0.01455863,105880.0,105870.0,1.6647734]
[1749390166153,0.00473475,105880.0,105870.0,1.6647734]
[1749390167465,0.00473475,105880.0,105870.0,1.7647734]
[1749390167763,0.00453475,105880.0,105870.0,1.7647734]
[1749390167964,0.00473475,105880.0,105870.0,1.7647734]
[1749390171154,0.00473475,105880.0,105870.0,2.14601991]
[1749390172167,0.00473475,105880.0,105870.0,1.7647734]
[1749390176270,0.00473475,105880.0,105870.0,2.05805542]
[1749390176969,0.00473475,105880.0,105870.0,1.7647734]
[1749390178069,0.00473475,105880.0,105870.0,1.8342734]
[1749390179769,0.01455863,105880.0,105870.0,1.8342734]
[1749390181672,0.01455863,105880.0,105870.0,2.21551991]
[1749390182673,0.22245863,105880.0,105870.0,1.8342734]
[1749390183072,0.22245863,105880.0,105870.0,2.21542764]
[1749390184179,0.22245863,105880.0,105870.0,1.6278934]
[1749390184880,0.22245863,105880.0,105870.0,1.7642934]
[1749390185880,0.22245863,105880.0,105870.0,2.05761797]
[1749390186484,0.22245863,105880.0,105870.0,1.7642934]
[1749390186880,0.22245863,105880.0,105870.0,2.05769334]
[1749390188198,0.22245863,105880.0,105870.0,1.7642934]
[1749390189384,0.22245863,105880.0,105870.0,1.8305934]
[1749390191284,0.22245863,105880.0,105870.0,1.1947734]
[1749390191490,0.22245863,105880.0,105870.0,1.0937334]
[1749390191790,0.22245863,105880.0,105870.0,1.92121334]
[1749390192687,0.21263475,105880.0,105870.0,1.92121334]
[1749390192888,0.22245863,105880.0,105870.0,1.92121334]
[1749390197686,0.22245863,105880.0,105870.0,1.9405483]
[1749390198886,0.22245863,105880.0,105870.0,1.64714836]
[1749390203192,0.22245863,105880.0,105870.0,2.0283826]
[1749390205683,0.21263475,105880.0,105870.0,2.0283826]
[1749390205886,0.22245863,105880.0,105870.0,2.0283826]
[1749390206294,0.22245863,105880.0,105870.0,1.94096962]
[1749390206594,0.22245863,105880.0,105870.0,1.51272962]
[1749390207097,0.22245863,105880.0,105870.0,1.21890836]
[1749390207393,0.22245863,105880.0,105870.0,1.6001426]
[1749390208393,0.22245863,105880.0,105870.0,1.89398747]
[1749390209495,0.22245863,105880.0,105870.0,1.15195323]
[1749390210096,0.22245863,105880.0,105870.0,1.15187323]
[1749390210398,0.22245863,105880.0,105870.0,1.2392626]
[1749390210699,0.58325863,105880.0,105870.0,1.2392626]
[1749390210887,0.58325863,105880.0,105870.0,1.53318441]
[1749390211497,0.58325863,105880.0,105870.0,1.15195017]
[1749390211698,0.58325863,105880.0,105870.0,0.85802836]
[1749390214902,0.22245863,105880.0,105870.0,0.85802836]
[1749390216409,0.58325863,105880.0,105870.0,0.85798836]
[1749390218205,0.22245863,105880.0,105870.0,0.85798836]
[1749390221611,0.58325863,105880.0,105870.0,0.85798836]
[1749390224714,0.22245863,105880.0,105870.0,0.85798836]
[1749390227518,0.58325863,105880.0,105870.0,0.85798836]
[1749390228018,0.22245863,105880.0,105870.0,0.85798836]
[1749390229011,0.58325863,105880.0,105870.0,0.85798836]
[1749390229213,0.22245863,105880.0,105870.0,0.85798836]
[1749390237214,0.22245863,105880.0,105870.0,1.21878836]
[1749390237415,0.22245863,105880.0,105870.0,1.35818836]
[1749390237915,0.22245863,105880.0,105870.0,0.99738836]
[1749390238423,0.22245863,105880.0,105870.0,1.35818836]
[1749390238820,0.22245863,105880.0,105870.0,0.99738836]
[1749390239523,0.22245863,105880.0,105870.0,1.29131017]
[1749390239719,0.08165863,105880.0,105870.0,1.65211017]
[1749390239918,0.08165863,105880.0,105870.0,1.35641017]
[1749390240124,0.08165863,105880.0,105870.0,1.42328836]
[1749390240326,0.08145863,105880.0,105870.0,1.42328836]
[1749390240526,0.08165863,105880.0,105870.0,1.42328836]
[1749390240922,0.00473475,105880.0,105870.0,1.71721017]
[1749390241127,0.01455863,105880.0,105870.0,1.71721017]
[1749390241321,0.01435863,105880.0,105870.0,1.71721017]
[1749390241522,0.01455863,105880.0,105870.0,1.71721017]
[1749390241722,0.01455863,105880.0,105870.0,1.42328836]
[1749390243930,0.01455863,105880.0,105870.0,1.8045226]
[1749390244828,0.01455863,105880.0,105870.0,1.42328836]
[1749390245023,0.01455863,105880.0,105870.0,1.80534483]
[1749390246433,0.01455863,105880.0,105870.0,2.09920509]
[1749390247036,0.01455863,105880.0,105870.0,1.71714862]
[1749390249128,0.01455863,105880.0,105870.0,1.42328836]
[1749390253836,0.01455863,105880.0,105870.0,0.99028836]
[1749390254036,0.01455863,105880.0,105870.0,1.42308836]
[1749390261447,0.21875863,105880.0,105870.0,1.42308836]
[1749390263144,0.21875863,105880.0,105870.0,1.71694862]
[1749390263847,0.21875863,105880.0,105870.0,1.42308836]
[1749390265154,0.21875863,105880.0,105870.0,1.71694862]
[1749390266651,0.21875863,105880.0,105870.0,1.42308836]
[1749390267345,0.21875863,105880.0,105870.0,1.06228836]
[1749390267551,0.21875863,105880.0,105870.0,1.42308836]
[1749390270754,0.21875863,105880.0,105870.0,1.35798836]
[1749390271851,0.21875863,105880.0,105870.0,0.99718836]
[1749390272358,0.21875863,105880.0,105870.0,1.35798836]
[1749390272855,0.21875863,105880.0,105870.0,1.65184862]
[1749390275447,0.21875863,105880.0,105870.0,1.72154862]
[1749390276457,0.21875863,105880.0,105870.0,1.42768836]
[1749390277057,0.21875863,105880.0,105870.0,1.72154862]
[1749390277755,0.21875863,105880.0,105870.0,1.42768836]
[1749390280760,0.21875863,105880.0,105870.0,0.89392836]
[1749390281060,0.21875863,105880.0,105870.0,1.42736836]
[1749390281455,0.21875863,105880.0,105870.0,0.89392836]
[1749390281755,0.21875863,105880.0,105870.0,1.35766836]
[1749390283961,0.21875863,105880.0,105870.0,1.65152862]
[1749390284658,0.21875863,105880.0,105870.0,1.11808862]
[1749390284866,0.21875863,105880.0,105870.0,1.21822836]
[1749390285466,0.21875863,105880.0,105870.0,1.51208862]
[1749390288266,0.21875863,105880.0,105870.0,1.21822836]
[1749390290772,0.21875863,105880.0,105870.0,1.42409302]
[1749390292369,0.21875863,105880.0,105870.0,1.06329302]
[1749390292568,0.21875863,105880.0,105870.0,1.42409302]
[1749390293471,0.21875863,105880.0,105870.0,1.21822836]
[1749390295472,0.21875863,105880.0,105870.0,0.85742836]
[1749390295660,0.21875863,105880.0,105870.0,1.21822836]
[1749390300762,0.21875863,105880.0,105870.0,1.51208862]
[1749390301369,0.21875863,105880.0,105870.0,1.39275366]
[1749390302168,0.20893475,105880.0,105870.0,1.60259366]
[1749390302373,0.01435863,105880.0,105870.0,1.60259366]
[1749390302574,0.01455863,105880.0,105870.0,1.60259366]
[1749390302766,0.01435863,105880.0,105870.0,1.60259366]
[1749390302970,0.01455863,105880.0,105870.0,1.3087334]
[1749390303670,0.01455863,105880.0,105870.0,1.60259366]
[1749390304269,0.01435863,105880.0,105870.0,1.60259366]
[1749390304463,0.01455863,105880.0,105870.0,1.60259366]
[1749390304673,0.00473475,105880.0,105870.0,1.79704466]
[1749390304873,0.00453475,105880.0,105870.0,1.89704466]
[1749390305076,0.00453475,105880.0,105870.0,1.6031844]
[1749390305277,0.00473475,105880.0,105870.0,1.6031844]
[1749390305979,0.00453475,105880.0,105870.0,2.78494487]
[1749390306276,0.00473475,105880.0,105870.0,2.78494487]
[1749390306477,0.00453475,105880.0,105870.0,2.78494487]
[1749390306677,0.00473475,105880.0,105870.0,2.78494487]
[1749390306880,0.00473475,105880.0,105870.0,2.4028884]
[1749390307871,0.00473475,105880.0,105870.0,2.78494487]
[1749390308882,0.00473475,105880.0,105870.0,2.4028884]
[1749390309180,0.00473475,105880.0,105870.0,2.53461397]
[1749390310182,0.00473475,105880.0,105870.0,2.62398453]
[1749390310383,0.00473475,105880.0,105870.0,3.00560275]
[1749390311784,0.00473475,105880.0,105870.0,2.81669875]
[1749390311986,0.00473475,105880.0,105870.0,2.34560262]
[1749390313490,0.00473475,105880.0,105870.0,1.9639844]
[1749390314280,0.00453475,105880.0,105870.0,1.9639844]
[1749390314484,0.00473475,105880.0,105870.0,1.9639844]
[1749390316697,0.00473475,105880.0,105870.0,2.34521287]
[1749390318690,0.00473475,105880.0,105870.0,1.9639844]
[1749390319185,0.00473475,105880.0,105870.0,1.9637044]
[1749390320094,0.00473475,105880.0,105870.0,1.4307444]
[1749390320296,0.00473475,105880.0,105870.0,1.9637044]
[1749390321898,0.00473475,105880.0,105870.0,2.34493287]
[1749390323296,0.00473475,105880.0,105870.0,1.81197287]
[1749390323696,0.00473475,105880.0,105870.0,2.34489287]
[1749390325101,0.00473475,105880.0,105870.0,1.9636644]
[1749390328301,0.00473475,105880.0,105870.0,2.34489287]
[1749390330198,0.00473475,105880.0,105870.0,1.9636644]
[1749390330700,0.21193475,105880.0,105870.0,1.9636644]
[1749390331102,0.21193475,105880.0,105870.0,2.34518771]
[1749390331899,0.21193475,105880.0,105870.0,1.67526771]
[1749390332203,0.21193475,105880.0,105870.0,2.13514771]
[1749390333901,0.22175863,105880.0,105870.0,2.13514771]
[1749390334299,0.22175863,105880.0,105870.0,1.7536244]
[1749390335100,0.22175863,105880.0,105870.0,2.13543202]
[1749390335696,0.19281008,105880.0,105870.0,2.13543202]
[1749390336500,0.19685886,105880.0,105870.0,2.15396202]
[1749390338208,0.19685886,105880.0,105870.0,1.7721544]
[1749390338403,0.03541674,105880.0,105870.0,2.24325053]
[1749390338610,0.03541674,105880.0,105870.0,1.71037053]
[1749390338800,0.03541674,105880.0,105870.0,2.24321053]
[1749390339001,0.01572061,105880.0,105870.0,2.24321053]
[1749390339201,0.01572061,105880.0,105870.0,2.62501815]
[1749390340210,0.01572061,105880.0,105870.0,1.7721144]
[1749390340412,0.01572061,105880.0,105870.0,2.15404823]
[1749390341508,0.01572061,105880.0,105870.0,2.22754823]
[1749390344008,0.00589673,105880.0,105870.0,1.52120823]
[1749390344206,0.37191669,105880.0,105870.0,1.13795723]
[1749390344513,0.01111669,105880.0,105870.0,1.43173827]
[1749390344713,0.44121669,105880.0,105870.0,2.04980444]
[1749390345216,0.44121669,105880.0,105870.0,1.61760444]
[1749390345406,0.44121669,105880.0,105870.0,2.04980444]
[1749390345607,0.44121669,105880.0,105870.0,1.7560234]
[1749390346911,0.44121669,105880.0,105870.0,1.7559434]
[1749390347314,0.51201669,105880.0,105870.0,1.7559434]
[1749390347815,0.51201669,105880.0,105870.0,2.04972444]
[1749390348516,0.51201669,105880.0,105870.0,1.7559434]
[1749390350317,0.51201669,105880.0,105870.0,1.96136354]
[1749390352712,0.51201669,105880.0,105870.0,1.7559434]
[1749390353215,0.51201669,105880.0,105870.0,1.2232234]
[1749390353518,0.51201669,105880.0,105870.0,1.7559434]
[1749390354222,0.51201669,105880.0,105870.0,1.2232234]
[1749390354421,0.9509207,105880.0,105870.0,1.96128206]
[1749390354718,0.9509207,105880.0,105870.0,1.961322]
[1749390354910,0.9509207,105880.0,105870.0,1.942792]
[1749390356210,0.7009207,105880.0,105870.0,1.7374134]
[1749390356917,0.7009207,105880.0,105870.0,1.8840499]
[1749390358322,0.51201669,105880.0,105870.0,1.90293356]
[1749390358927,0.51221669,105880.0,105870.0,1.90293356]
[1749390359620,0.51221669,105880.0,105870.0,1.75629706]
[1749390360423,0.51221669,105880.0,105870.0,1.7374134]
[1749390364121,0.51221669,105880.0,105870.0,1.8840499]
[1749390365425,0.7011207,105880.0,105870.0,1.4518499]
[1749390365617,0.7011207,105880.0,105870.0,1.8840499]
[1749390367926,0.7011207,105880.0,105870.0,1.3513299]
[1749390368121,0.8899256,105880.0,105870.0,1.4518499]
[1749390368323,0.8899256,105880.0,105870.0,1.3518499]
[1749390368524,0.8899256,105880.0,105870.0,1.6374134]
[1749390368725,0.8899256,105880.0,105870.0,1.842792]
[1749390368921,0.8899256,105880.0,105870.0,1.310072]
[1749390369130,0.8899256,105880.0,105870.0,1.68357387]
[1749390369332,0.8899256,105880.0,105870.0,1.25137387]
[1749390369628,1.1399256,105880.0,105870.0,1.742272]
[1749390369834,1.1399256,105880.0,105870.0,1.88898658]
[1749390370329,1.1399256,105880.0,105870.0,1.68360798]
[1749390371129,0.8899256,105880.0,105870.0,1.68360798]
[1749390371329,0.8899256,105880.0,105870.0,1.25140798]
[1749390371831,0.8899256,105880.0,105870.0,1.1046934]
[1749390372237,0.8899256,105880.0,105870.0,1.25140798]
[1749390372631,1.13010172,105880.0,105870.0,1.2415841]
[1749390372839,1.13010172,105880.0,105870.0,1.16258458]
[1749390373038,1.13010172,105880.0,105870.0,1.2046926]
[1749390374539,1.13010172,105880.0,105870.0,1.01587]
[1749390374742,1.13010172,105880.0,105870.0,0.92142]
[1749390375043,0.1888227,105870.0,105860.0,0.33555448]
[1749390375241,1.13712298,105870.0,105860.0,0.33555448]
[1749390375445,1.57604298,105870.0,105860.0,0.33555448]
[1749390376341,1.57604298,105870.0,105860.0,0.34155448]
[1749390376551,1.57604298,105870.0,105860.0,0.34655448]
[1749390378034,0.89380298,105870.0,105860.0,0.34655448]
[1749390378439,0.89400298,105870.0,105860.0,0.34655448]
[1749390379048,1.38480298,105870.0,105860.0,0.34655448]
[1749390380244,0.1888405,105860.0,105850.0,0.66847517]
[1749390380444,0.6931405,105860.0,105850.0,0.66847517]
[1749390380633,0.8820765,105860.0,105850.0,0.66847517]
[1749390381039,0.8820765,105860.0,105850.0,0.81367517]
[1749390381239,0.8820765,105860.0,105850.0,0.88487517]
[1749390381548,0.6931405,105860.0,105850.0,0.88487517]
[1749390381851,0.6931405,105860.0,105850.0,0.88887517]
[1749390382753,0.6931405,105860.0,105850.0,0.89287517]
[1749390385952,0.5496405,105860.0,105850.0,0.89287517]
[1749390388556,0.3608,105860.0,105850.0,0.89287517]
[1749390388862,0.3608,105860.0,105850.0,1.03961195]
[1749390390260,0.5496405,105860.0,105850.0,1.03961195]
[1749390390461,0.3608,105860.0,105850.0,1.03961195]
[1749390391562,0.3608,105860.0,105850.0,0.60733195]
[1749390391762,0.3608,105860.0,105850.0,1.03961195]
[1749390391963,0.5496405,105860.0,105850.0,1.03961195]
[1749390392565,0.5496405,105860.0,105850.0,0.89287517]
[1749390394065,0.5496405,105860.0,105850.0,0.84566357]
[1749390394265,0.5496405,105860.0,105850.0,0.80355855]
[1749390394469,0.7618405,105860.0,105850.0,0.99241685]
[1749390396170,0.76588928,105860.0,105850.0,0.99241685]
[1749390399768,0.76588928,105860.0,105850.0,0.80355855]
[1749390400165,0.76588928,105860.0,105850.0,0.99241675]
[1749390400967,0.40508928,105860.0,105850.0,0.99241675]
[1749390401168,1.12668928,105860.0,105850.0,0.80355855]
[1749390401370,1.12668928,105860.0,105850.0,0.99241675]
[1749390402876,1.12668928,105860.0,105850.0,0.99241695]
[1749390403275,1.12668928,105860.0,105850.0,0.73235855]
[1749390403575,1.12668928,105860.0,105850.0,0.58711855]
[1749390404667,1.12668928,105860.0,105850.0,0.77597685]
[1749390404868,1.12668928,105860.0,105850.0,0.77197685]
[1749390405070,1.12668928,105860.0,105850.0,0.77297685]
[1749390405974,1.12668928,105860.0,105850.0,0.76897685]
[1749390406272,1.12668928,105860.0,105850.0,0.76997685]
[1749390407077,1.12668928,105860.0,105850.0,0.90587685]
[1749390408577,1.12668928,105860.0,105850.0,0.98512949]
[1749390408971,1.12668928,105860.0,105850.0,0.83839271]
[1749390409478,1.12668928,105860.0,105850.0,0.98559792]
[1749390414182,1.12668928,105860.0,105850.0,0.83839271]
[1749390414373,1.12668928,105860.0,105850.0,1.0438242]
[1749390416077,1.12668928,105860.0,105850.0,0.6115842]
[1749390416286,1.12668928,105860.0,105850.0,1.0438242]
[1749390417284,1.12668928,105860.0,105850.0,0.83839271]
[1749390418582,0.72564878,105860.0,105850.0,0.83839271]
[1749390418983,0.91448918,105860.0,105850.0,0.83839271]
[1749390419479,0.91468918,105860.0,105850.0,0.83839271]
[1749390420688,0.72584878,105860.0,105850.0,0.83839271]
[1749390421186,0.72584878,105860.0,105850.0,0.98555227]
[1749390421587,0.91468918,105860.0,105850.0,0.98555227]
[1749390423896,0.91468918,105860.0,105850.0,0.98551227]
[1749390424390,0.91468918,105860.0,105850.0,0.83835271]
[1749390424891,0.91468918,105860.0,105850.0,1.0437842]
[1749390425092,1.12188918,105860.0,105850.0,1.0437842]
[1749390425495,1.12188918,105860.0,105850.0,0.83835271]
[1749390425891,1.12188918,105860.0,105850.0,1.0437842]
[1749390426091,1.12188918,105860.0,105850.0,0.9737842]
[1749390428994,1.12188918,105860.0,105850.0,0.76835271]
[1749390430396,1.12188918,105860.0,105850.0,0.70255271]
[1749390432496,1.12188918,105860.0,105850.0,0.63245271]
[1749390432898,1.12188918,105860.0,105850.0,0.77960983]
[1749390433792,1.12188918,105860.0,105850.0,0.63245271]
[1749390433998,1.12188918,105860.0,105850.0,0.8378842]
[1749390436702,1.12188918,105860.0,105850.0,0.63245271]
[1749390440305,1.12188918,105860.0,105850.0,0.8378842]
[1749390441708,1.12188918,105860.0,105850.0,0.9323342]
[1749390444302,1.12188918,105860.0,105850.0,0.79310271]
[1749390445308,0.27776972,105880.0,105860.0,0.3304975]
[1749390445609,0.00194668,105890.0,105880.0,0.2832547]
[1749390445914,0.00194668,105890.0,105880.0,1.25015523]
[1749390446108,0.00194668,105890.0,105880.0,1.60015523]
[1749390446615,0.00214668,105890.0,105880.0,1.42014287]
[1749390446816,0.00214668,105890.0,105880.0,1.71309668]
[1749390447516,0.00214668,105890.0,105880.0,1.71409668]
[1749390448114,0.00214668,105890.0,105880.0,1.42214287]
[1749390448707,0.00214668,105890.0,105880.0,1.7141364]
[1749390448904,0.00214668,105890.0,105880.0,1.7142364]
[1749390450210,0.00214668,105890.0,105880.0,1.42224287]
[1749390451005,0.00214668,105890.0,105880.0,1.42234287]
[1749390451417,0.00214668,105890.0,105880.0,1.62652248]
[1749390451809,0.00194668,105890.0,105880.0,1.22787142]
[1749390452010,0.00214668,105890.0,105880.0,1.76031142]
[1749390452215,0.00214668,105890.0,105880.0,1.55613181]
[1749390452614,0.00214668,105890.0,105880.0,1.02369181]
[1749390452815,0.00214668,105890.0,105880.0,1.41034079]
[1749390453017,0.00214668,105890.0,105880.0,0.87790079]
[1749390453218,0.00214668,105890.0,105880.0,1.41034079]
[1749390453720,0.00214668,105890.0,105880.0,1.22135279]
[1749390454024,0.14604668,105890.0,105880.0,0.68891279]
[1749390454210,0.14604668,105890.0,105880.0,1.22135279]
[1749390456720,0.14604668,105890.0,105880.0,1.36714381]
[1749390459110,0.14604668,105890.0,105880.0,0.83470381]
[1749390459427,0.14604668,105890.0,105880.0,1.36706381]
[1749390460322,0.14604668,105890.0,105880.0,1.36696381]
[1749390461120,0.14604668,105890.0,105880.0,0.83460381]
[1749390461424,0.14604668,105890.0,105880.0,0.78921279]
[1749390461729,0.14604668,105890.0,105880.0,1.36696381]
[1749390461919,0.14604668,105890.0,105880.0,1.22117279]
[1749390462925,0.14604668,105890.0,105880.0,1.36696381]
[1749390463227,0.14604668,105890.0,105880.0,1.22117279]
[1749390464822,0.14584668,105890.0,105880.0,1.22117279]
[1749390465028,0.14604668,105890.0,105880.0,1.22117279]
[1749390465223,0.14604668,105890.0,105880.0,1.22522157]
[1749390466024,0.07534668,105890.0,105880.0,1.22522157]
[1749390466230,0.00194668,105890.0,105880.0,1.66140589]
[1749390466522,0.00214668,105890.0,105880.0,1.53761487]
[1749390466827,0.00214668,105890.0,105880.0,1.74179448]
[1749390467224,0.00214668,105890.0,105880.0,1.74584326]
[1749390467429,0.00214668,105890.0,105880.0,1.54166365]
[1749390468229,0.00214668,105890.0,105880.0,1.74179448]
[1749390469330,0.00214668,105890.0,105880.0,1.93473126]
[1749390470122,0.00214668,105890.0,105880.0,1.73055165]
[1749390470322,0.00214668,105890.0,105880.0,1.72650287]
[1749390471425,0.00214668,105890.0,105880.0,2.0184964]
[1749390471925,0.00214668,105890.0,105880.0,2.39993204]
[1749390472229,0.00214668,105890.0,105880.0,2.40083599]
[1749390472624,0.00214668,105890.0,105880.0,2.21194799]
[1749390473027,0.00214668,105890.0,105880.0,1.83043235]
[1749390473329,0.00214668,105890.0,105880.0,1.83448113]
[1749390473529,0.07354668,105890.0,105880.0,1.83448113]
[1749390473723,0.07354668,105890.0,105880.0,1.54158365]
[1749390473918,0.14294668,105890.0,105880.0,1.54158365]
[1749390475129,0.14294668,105890.0,105880.0,1.83448113]
[1749390475436,0.14294668,105890.0,105880.0,1.83043235]
[1749390475929,0.14294668,105890.0,105880.0,1.53753487]
[1749390476226,0.14294668,105890.0,105880.0,1.52273487]
[1749390476529,0.14294668,105890.0,105880.0,1.81563235]
[1749390477425,0.00214668,105890.0,105880.0,1.81563235]
[1749390477627,0.00214668,105890.0,105880.0,1.82253235]
[1749390477931,0.00194668,105890.0,105880.0,2.01142035]
[1749390478521,0.00214668,105890.0,105880.0,2.01142035]
[1749390480629,0.00214668,105890.0,105880.0,1.82253235]
[1749390482030,0.14674668,105890.0,105880.0,1.82253235]
[1749390482231,0.14674668,105890.0,105880.0,1.52963487]
[1749390483933,0.14674668,105890.0,105880.0,1.82299639]
[1749390486335,0.14674668,105890.0,105880.0,1.81609639]
[1749390486636,0.15079546,105890.0,105880.0,1.71609639]
[1749390489839,0.15079546,105890.0,105880.0,1.70889639]
[1749390490041,0.15079546,105890.0,105880.0,1.80889639]
[1749390490341,0.15079546,105890.0,105880.0,1.51553487]
[1749390490540,0.15079546,105890.0,105880.0,1.80895394]
[1749390491132,0.15079546,105890.0,105880.0,1.51553487]
[1749390491840,0.15079546,105890.0,105880.0,1.80899001]
[1749390495243,0.15079546,105890.0,105880.0,1.51553487]
[1749390495745,0.15079546,105890.0,105880.0,0.98325487]
[1749390495937,0.15079546,105890.0,105880.0,1.51549487]
[1749390496249,0.00834043,105900.0,105880.0,1.48459017]
[1749390496451,0.00984686,105940.0,105880.0,1.48459017]
[1749390496452,0.38006505,105960.0,105900.0,0.0471923]
[1749390496745,0.3608,105970.0,105950.0,0.0943336]
[1749390496940,0.01291485,105990.0,105950.0,0.0943336]
[1749390496941,0.0016,105990.0,105980.0,0.1886269]
[1749390497139,0.01484225,106020.0,106010.0,0.1885735]
[1749390497338,0.0004,106030.0,106020.0,0.5493557]
[1749390497641,0.01960964,106040.0,106030.0,0.1885379]
[1749390497844,0.01960964,106040.0,106030.0,0.95504565]
[1749390498146,0.02680964,106040.0,106030.0,1.45709683]
[1749390498339,0.01700964,106040.0,106030.0,1.31201524]
[1749390498534,0.01680964,106040.0,106030.0,1.75019193]
[1749390498735,0.01700964,106040.0,106030.0,1.75019193]
[1749390498942,0.02226303,106050.0,106040.0,0.1885206]
[1749390499241,0.01852837,106070.0,106060.0,0.188485]
[1749390499443,0.01852837,106070.0,106060.0,1.67780765]
[1749390499741,0.01852837,106070.0,106060.0,1.576445]
[1749390499947,0.01852837,106070.0,106060.0,1.476445]
[1749390500244,0.01852837,106070.0,106060.0,1.20439348]
[1749390500434,0.01852837,106070.0,106060.0,2.02158339]
[1749390500633,0.01872837,106070.0,106060.0,1.99277563]
[1749390500841,0.16212837,106070.0,106060.0,1.67827348]
[1749390501044,0.02011545,106080.0,106070.0,0.1884673]
[1749390501341,0.02011545,106080.0,106070.0,1.41502552]
[1749390501548,0.02031545,106080.0,106070.0,1.60930732]
[1749390501747,0.03319817,106090.0,106070.0,1.44988307]
[1749390502045,0.08830759,106110.0,106100.0,0.1884141]
[1749390502244,0.08830759,106110.0,106100.0,1.15315256]
[1749390502547,0.16270759,106110.0,106100.0,1.54602948]
[1749390502742,0.16270759,106110.0,106100.0,1.79751235]
[1749390503247,0.16290759,106110.0,106100.0,1.68672257]
[1749390503442,0.16290759,106110.0,106100.0,1.20428257]
[1749390503840,0.16270759,106110.0,106100.0,1.72404257]
[1749390504144,5.04786759,106110.0,106100.0,1.20728257]
[1749390504449,5.20058759,106110.0,106100.0,1.73544257]
[1749390504644,5.20058759,106110.0,106100.0,1.73444257]
[1749390504845,5.20058759,106110.0,106100.0,1.73644257]
[1749390505041,5.20058759,106110.0,106100.0,1.20828257]
[1749390505240,5.20058759,106110.0,106100.0,1.73700257]
[1749390505648,5.67252759,106110.0,106100.0,1.73700257]
[1749390506149,5.67252759,106110.0,106100.0,1.74440257]
[1749390506348,5.74302759,106110.0,106100.0,1.64440257]
[1749390507046,4.88540477,106110.0,106100.0,0.1884147]
[1749390507249,0.47194,106090.0,106070.0,1.08880379]
[1749390507450,0.4312851,106090.0,106080.0,0.9192328]
[1749390507651,2.6774451,106090.0,106080.0,0.41579426]
[1749390507843,2.6774451,106090.0,106080.0,0.321548]
[1749390508044,2.6773651,106090.0,106080.0,0.227323]
[1749390508244,0.4312851,106080.0,106070.0,0.37431736]
[1749390508445,2.6774451,106080.0,106070.0,0.47431736]
[1749390508752,2.6774451,106080.0,106070.0,0.44856959]
[1749390508955,2.6774451,106080.0,106070.0,0.40145299]
[1749390509148,2.6774451,106080.0,106070.0,0.21260076]
[1749390509352,2.8366451,106080.0,106070.0,0.21260076]
[1749390509752,2.8368451,106080.0,106070.0,0.21260076]
[1749390509958,3.0868451,106080.0,106060.0,0.0471201]
[1749390510258,2.6776051,106070.0,106060.0,0.1884858]
[1749390511155,2.6776051,106070.0,106060.0,0.1894858]
[1749390511656,2.6786051,106070.0,106060.0,0.1894858]
[1749390512746,2.3178851,106070.0,106060.0,0.26354206]
[1749390512951,2.8378851,106070.0,106060.0,0.26354206]
[1749390513253,2.8378851,106070.0,106060.0,0.79774206]
[1749390513450,3.10681468,106070.0,106060.0,0.26354206]
[1749390513651,3.10681468,106070.0,106060.0,0.26354256]
[1749390514049,4.60681468,106070.0,106060.0,0.001]
[1749390514248,4.60681468,106070.0,106050.0,0.67527727]
[1749390514446,4.60681468,106070.0,106050.0,0.53366177]
[1749390514447,2.6778451,106060.0,106050.0,0.53366177]
[1749390514651,2.6778451,106060.0,106050.0,0.00014177]
[1749390514846,2.9278451,106060.0,106050.0,0.00014177]
[1749390515045,2.9278451,106060.0,106050.0,0.18864577]
[1749390515553,2.9278451,106060.0,106050.0,0.19164577]
[1749390516155,2.9278451,106060.0,106050.0,0.19364577]
[1749390516353,1.2012851,106060.0,106050.0,0.19364587]
[1749390516553,3.0871251,106060.0,106050.0,0.19364587]
[1749390517157,2.8371251,106060.0,106050.0,0.18864587]
[1749390517355,2.8421251,106060.0,106050.0,0.18864587]
[1749390517554,3.0921251,106060.0,106050.0,0.1885041]
[1749390517749,3.0901251,106060.0,106050.0,0.1885041]
[1749390517955,3.0941251,106060.0,106040.0,0.7671587]
[1749390518155,2.6780051,106050.0,106040.0,0.2827688]
[1749390518357,2.69703813,106050.0,106040.0,0.8140888]
[1749390518658,2.69703813,106050.0,106020.0,0.00938926]
[1749390518659,0.4312851,106030.0,106020.0,0.00938926]
[1749390518954,2.3317217,106030.0,106010.0,0.26351047]
[1749390519149,1.7352851,106020.0,106010.0,0.31065417]
[1749390519547,1.8077651,106020.0,106010.0,0.31065417]
[1749390519749,1.8079651,106020.0,106010.0,0.38515417]
[1749390519950,1.9671651,106020.0,106010.0,0.38515417]
[1749390520154,1.9671651,106020.0,106010.0,0.39466101]
[1749390520348,1.9669651,106020.0,106010.0,0.92606101]
[1749390520555,1.9669651,106020.0,106010.0,0.39466101]
[1749390520762,1.9671651,106020.0,106010.0,0.92590101]
[1749390520956,1.9671651,106020.0,106010.0,0.92538101]
[1749390522161,1.9671651,106020.0,106010.0,0.92566101]
[1749390522359,1.9669651,106020.0,106010.0,0.92566101]
[1749390522662,1.9671651,106020.0,106010.0,0.92566101]
[1749390522862,0.1594,106020.0,106010.0,0.92566101]
[1749390523060,0.1594,106020.0,106010.0,1.09518728]
[1749390523360,1.9665651,106020.0,106010.0,0.87769021]
[1749390523662,0.5922,106020.0,106010.0,0.34853021]
[1749390523858,0.5922,106020.0,106010.0,0.95227021]
[1749390525459,1.9667651,106020.0,106010.0,0.95227021]
[1749390526059,1.9667651,106020.0,106010.0,1.06671321]
[1749390526460,1.9667651,106020.0,106010.0,0.27439791]
[1749390527465,1.9753651,106020.0,106010.0,0.08545491]
[1749390527664,1.9753651,106020.0,106010.0,0.69838609]
[1749390527855,1.9753651,106020.0,106010.0,0.88696149]
[1749390527856,1.8075651,106020.0,106010.0,0.88696149]
[1749390528057,1.9612051,106020.0,106010.0,0.96146149]
[1749390528369,1.9612051,106020.0,106010.0,0.96110149]
[1749390528560,1.9610051,106020.0,106010.0,0.96110149]
[1749390528765,1.9612051,106020.0,106010.0,0.96110149]
[1749390529065,1.8075651,106020.0,106010.0,0.24696609]
[1749390529267,1.9612051,106020.0,106010.0,0.77180609]
[1749390529466,1.9698051,106020.0,106010.0,0.69710609]
[1749390529763,2.1583627,106020.0,106010.0,0.16295925]
[1749390530267,2.1583627,106020.0,106010.0,0.16700803]
[1749390530471,2.1583627,106020.0,106010.0,0.69096803]
[1749390530663,1.9698051,106020.0,106010.0,0.79237225]
[1749390530863,1.9698051,106020.0,106010.0,0.80182938]
[1749390531159,2.1583627,106020.0,106010.0,0.80182938]
[1749390531359,1.9698051,106020.0,106010.0,0.26857225]